bitfinex-derivatives/quotes_BTCF0:USTF0_20250429
["timestamp","ask_amount","ask_price","bid_price","bid_amount"]
[1745966807904,0.88673908,94216.0,94215.0,0.97448]
[1745966808201,0.88673908,94216.0,94215.0,0.85448]
[1745966808499,0.49613908,94216.0,94215.0,0.85448]
[1745966809102,0.49613908,94216.0,94215.0,0.97448]
[1745966809295,0.49613908,94216.0,94215.0,0.98248]
[1745966809894,0.49713908,94216.0,94215.0,0.97448]
[1745966810290,0.49813908,94216.0,94215.0,0.98148]
[1745966810897,0.49813908,94216.0,94215.0,0.97348]
[1745966811097,0.49913908,94216.0,94215.0,0.97348]
[1745966811301,0.49813908,94216.0,94215.0,0.97348]
[1745966811604,0.50013908,94216.0,94215.0,0.97348]
[1745966815995,0.50013908,94216.0,94215.0,1.16078]
[1745966816200,0.50013908,94216.0,94215.0,1.04078]
[1745966818699,0.50013908,94216.0,94215.0,0.9745]
[1745966818913,0.50013908,94216.0,94215.0,1.04078]
[1745966820215,0.50013908,94216.0,94215.0,1.16078]
[1745966821123,0.50013908,94216.0,94215.0,1.04078]
[1745966830418,0.50013908,94216.0,94215.0,0.47768]
[1745966830714,1.06953908,94216.0,94215.0,0.47768]
[1745966830912,1.06953908,94216.0,94215.0,0.47756]
[1745966832010,0.88363908,94216.0,94215.0,0.47756]
[1745966832812,0.88363908,94216.0,94215.0,0.66566]
[1745966837321,0.88363908,94216.0,94215.0,0.85876]
[1745966839915,0.68763908,94216.0,94215.0,0.85876]
[1745966840717,0.3608,94258.0,94235.0,0.2121823]
[1745966840914,0.131,94236.0,94235.0,1.0505423]
[1745966841114,0.131,94236.0,94235.0,1.6726823]
[1745966841414,0.23713964,94236.0,94235.0,1.7388423]
[1745966842009,0.23713964,94236.0,94235.0,1.7418423]
[1745966842408,0.23713964,94236.0,94235.0,1.7458423]
[1745966843619,0.23913964,94236.0,94235.0,1.7388423]
[1745966844118,0.23713964,94236.0,94235.0,1.7398423]
[1745966856121,0.23713964,94236.0,94235.0,1.52766]
[1745966858218,0.23713964,94236.0,94235.0,0.95936]
[1745966859417,0.23713964,94236.0,94235.0,0.83936]
[1745966864635,0.23713964,94236.0,94235.0,1.2450423]
[1745966865032,0.23713964,94236.0,94235.0,1.3511583]
[1745966865332,0.031,94236.0,94235.0,1.4711583]
[1745966865630,0.031,94236.0,94235.0,1.4710383]
[1745966866231,0.3749,94264.0,94235.0,1.508856]
[1745966866432,0.3749,94264.0,94263.0,0.5729192]
[1745966866433,0.5711,94264.0,94263.0,0.5729192]
[1745966866731,0.39,94264.0,94263.0,1.0503592]
[1745966866928,0.49611712,94264.0,94263.0,1.1564432]
[1745966867121,0.49611712,94264.0,94263.0,1.1703592]
[1745966867317,0.49611712,94264.0,94263.0,1.3001192]
[1745966867522,0.49611712,94264.0,94263.0,1.5477592]
[1745966867723,0.49611712,94264.0,94263.0,1.5567592]
[1745966868125,0.49611712,94264.0,94263.0,1.6628432]
[1745966868327,0.49611712,94264.0,94263.0,1.6658432]
[1745966868831,0.49711712,94264.0,94263.0,1.6788432]
[1745966869029,0.49711712,94264.0,94263.0,1.5727592]
[1745966871440,0.49711712,94264.0,94263.0,1.6788432]
[1745966871730,0.34,94279.0,94274.0,0.2120945]
[1745966871934,0.16,94290.0,94289.0,0.2120607]
[1745966872131,0.21,94290.0,94289.0,0.42684]
[1745966872331,0.21,94290.0,94289.0,0.3608]
[1745966872632,0.5813,94290.0,94289.0,0.42684]
[1745966872832,0.68735634,94290.0,94289.0,0.42684]
[1745966873535,0.69513321,94290.0,94289.0,0.42684]
[1745966874336,0.69513321,94290.0,94289.0,0.43284]
[1745966874530,0.69513321,94290.0,94289.0,0.43784]
[1745966875032,0.69513321,94290.0,94289.0,0.07704]
[1745966875222,0.81513321,94290.0,94289.0,0.07704]
[1745966875829,0.81513321,94290.0,94289.0,0.011]
[1745966876023,0.81513321,94290.0,94289.0,0.07704]
[1745966876631,0.92118921,94290.0,94289.0,0.07704]
[1745966878337,0.80118921,94290.0,94289.0,0.07704]
[1745966879037,0.69513321,94290.0,94289.0,0.07704]
[1745966882237,0.69513321,94290.0,94289.0,0.48844]
[1745966883228,0.80118921,94290.0,94289.0,0.4224]
[1745966883440,0.80118921,94290.0,94289.0,0.4884]
[1745966884248,0.92118921,94290.0,94289.0,0.4884]
[1745966886140,0.80118921,94290.0,94289.0,0.4884]
[1745966889042,0.69513321,94290.0,94289.0,0.4884]
[1745966890537,0.69513321,94290.0,94289.0,0.4224]
[1745966890734,0.69513321,94290.0,94289.0,0.4884]
[1745966890944,0.69513321,94290.0,94289.0,0.4224]
[1745966891149,0.69513321,94290.0,94289.0,0.4884]
[1745966895741,0.69513321,94290.0,94289.0,0.4894]
[1745966895947,0.69513321,94290.0,94289.0,0.4904]
[1745966897453,0.32383321,94290.0,94289.0,0.4904]
[1745966898452,0.32383321,94290.0,94289.0,0.6104]
[1745966904848,0.32383321,94290.0,94289.0,1.332]
[1745966905853,0.32383321,94290.0,94289.0,1.5248]
[1745966908057,0.32383321,94290.0,94289.0,1.8429167]
[1745966908749,0.32383321,94290.0,94289.0,2.0929167]
[1745966910653,0.32383321,94290.0,94289.0,1.8429167]
[1745966911357,0.32383321,94290.0,94289.0,1.1213167]
[1745966911551,0.32383321,94290.0,94289.0,1.8429167]
[1745966913555,0.32383321,94290.0,94289.0,1.4588]
[1745966913758,0.32383321,94290.0,94289.0,1.7367807]
[1745966914058,0.32383321,94290.0,94289.0,1.52472]
[1745966914248,0.32383321,94290.0,94289.0,1.40472]
[1745966914662,0.32383321,94290.0,94289.0,1.40572]
[1745966914955,0.32383321,94290.0,94289.0,1.40672]
[1745966915163,0.32383321,94290.0,94289.0,1.21392]
[1745966924068,0.32383321,94290.0,94289.0,0.49232]
[1745966924365,0.32383321,94290.0,94289.0,0.85312]
[1745966924760,0.32383321,94290.0,94289.0,0.49232]
[1745966924962,0.32383321,94290.0,94289.0,0.85312]
[1745966927281,0.32383321,94290.0,94289.0,1.0651807]
[1745966927868,0.32383321,94290.0,94289.0,0.85312]
[1745966928071,0.32383321,94290.0,94289.0,1.0651807]
[1745966928368,0.32383321,94290.0,94289.0,1.3759807]
[1745966928960,0.32383321,94290.0,94289.0,1.5636807]
[1745966929369,0.32383321,94290.0,94289.0,1.5646807]
[1745966929867,0.32383321,94290.0,94289.0,1.5566807]
[1745966930070,0.32383321,94290.0,94289.0,1.5656807]
[1745966931863,0.32383321,94290.0,94289.0,1.35362]
[1745966932167,0.32383321,94290.0,94289.0,1.5656807]
[1745966933671,0.32383321,94290.0,94289.0,1.35362]
[1745966934363,0.32383321,94290.0,94289.0,1.5656807]
[1745966934963,0.0015,94310.0,94295.0,0.2120472]
[1745966935282,0.201,94296.0,94295.0,0.7434472]
[1745966935468,0.30705634,94296.0,94295.0,0.7434472]
[1745966935672,0.31519088,94296.0,94295.0,0.7434472]
[1745966935873,0.31519088,94296.0,94295.0,1.1195472]
[1745966936472,0.31519088,94296.0,94295.0,1.1325472]
[1745966936674,0.31519088,94296.0,94295.0,1.2385952]
[1745966936976,0.0015,94310.0,94309.0,0.2120158]
[1745966937158,0.4249,94310.0,94309.0,0.9994558]
[1745966937361,0.53094959,94310.0,94309.0,0.9994558]
[1745966937557,0.34546445,94310.0,94309.0,0.9994558]
[1745966937766,0.34546445,94310.0,94309.0,1.3801558]
[1745966939363,0.34546445,94310.0,94309.0,1.3841558]
[1745966940063,0.34546445,94310.0,94309.0,1.3881558]
[1745966940877,0.34546445,94310.0,94309.0,1.7995558]
[1745966941975,0.34546445,94310.0,94309.0,1.90558779]
[1745966942176,0.34546445,94310.0,94309.0,2.02558779]
[1745966942962,0.1922,94335.0,94316.0,0.0529998]
[1745966943175,0.1917,94324.0,94323.0,0.2119824]
[1745966943374,0.1917,94324.0,94323.0,0.6386224]
[1745966943375,0.26,94324.0,94323.0,0.6386224]
[1745966943577,0.36603385,94324.0,94323.0,0.6386224]
[1745966944370,0.36603385,94324.0,94323.0,0.6436224]
[1745966944567,0.37418078,94324.0,94323.0,1.0610224]
[1745966944974,0.37418078,94324.0,94323.0,0.7832]
[1745966945275,0.37418078,94324.0,94323.0,0.84904]
[1745966945778,0.56038078,94324.0,94323.0,1.0610243]
[1745966946974,0.37418078,94324.0,94323.0,1.0610243]
[1745966947870,0.37418078,94324.0,94323.0,1.1670443]
[1745966948070,0.37418078,94324.0,94323.0,1.2870443]
[1745966949176,0.37418078,94324.0,94323.0,1.1670443]
[1745966950067,0.37418078,94324.0,94323.0,0.8062443]
[1745966950266,0.37418078,94324.0,94323.0,1.5278443]
[1745966952072,0.37418078,94324.0,94323.0,1.4218243]
[1745966955267,0.26814693,94324.0,94323.0,1.5298443]
[1745966956166,0.26814693,94324.0,94323.0,1.6498443]
[1745966956676,0.26814693,94324.0,94323.0,1.6518443]
[1745966958981,0.26814693,94324.0,94323.0,1.268]
[1745966959178,0.37416504,94324.0,94323.0,1.4257443]
[1745966959381,0.37416504,94324.0,94323.0,1.3599843]
[1745966959866,0.55406504,94324.0,94323.0,1.4257443]
[1745966962577,0.55406504,94324.0,94323.0,1.8069443]
[1745966964574,0.55406504,94324.0,94323.0,1.7989443]
[1745966964880,0.55406504,94324.0,94323.0,1.8079443]
[1745966966382,0.55406504,94324.0,94323.0,1.8089443]
[1745966970080,0.37416504,94324.0,94323.0,1.8089443]
[1745966978886,0.37416504,94324.0,94323.0,1.7999443]
[1745966979185,0.37416504,94324.0,94323.0,1.8099443]
[1745966979491,0.37416504,94324.0,94323.0,1.8019443]
[1745966979689,0.37416504,94324.0,94323.0,1.8109443]
[1745966980300,0.37416504,94324.0,94323.0,1.6270443]
[1745966980481,0.37416504,94324.0,94323.0,1.5612843]
[1745966980675,0.75126504,94324.0,94323.0,1.6270443]
[1745966980877,0.75126504,94324.0,94323.0,1.5612843]
[1745966981184,0.75126504,94324.0,94323.0,1.6270443]
[1745966986184,0.75126504,94324.0,94323.0,1.6180443]
[1745966986692,0.75126504,94324.0,94323.0,1.4207443]
[1745966986990,0.75126504,94324.0,94323.0,1.4107443]
[1745966987192,0.87126504,94324.0,94323.0,1.4107443]
[1745966988587,0.87126504,94324.0,94323.0,0.8710443]
[1745966988785,0.87126504,94324.0,94323.0,1.4107443]
[1745966990895,0.87126504,94324.0,94323.0,0.6891443]
[1745966991081,0.87126504,94324.0,94323.0,1.4107443]
[1745966992291,0.87126504,94324.0,94323.0,1.3449843]
[1745966992497,0.87126504,94324.0,94323.0,1.4106643]
[1745966993687,0.87126504,94324.0,94323.0,1.6083643]
[1745966995596,0.87126504,94324.0,94323.0,1.4106643]
[1745966996394,0.87126504,94324.0,94323.0,1.5987643]
[1745966998094,0.75126504,94324.0,94323.0,1.5987643]
[1745966998895,0.75126504,94324.0,94323.0,1.7819643]
[1745966999197,0.75146259,94324.0,94323.0,1.7819643]
[1745967000302,0.37436259,94324.0,94323.0,1.7819643]
[1745967000599,0.3608,94357.0,94343.0,0.2119387]
[1745967000804,0.3748,94344.0,94343.0,0.5727394]
[1745967000996,0.6527343,94344.0,94343.0,0.6384194]
[1745967001196,0.87875241,94344.0,94343.0,0.42648]
[1745967001395,0.87875241,94344.0,94343.0,0.6384194]
[1745967001801,0.68465241,94344.0,94343.0,0.6384194]
[1745967002704,0.87055241,94344.0,94343.0,0.42648]
[1745967003001,0.87055241,94344.0,94343.0,0.43348]
[1745967003604,0.87055241,94344.0,94343.0,0.44148]
[1745967005296,0.97654841,94344.0,94343.0,0.44148]
[1745967005694,1.17484841,94344.0,94343.0,0.44148]
[1745967008002,1.17484841,94344.0,94343.0,0.3758]
[1745967008205,1.42484841,94344.0,94343.0,0.06568]
[1745967011611,1.42484841,94344.0,94332.0,0.3608]
[1745967011799,0.16531574,94342.0,94333.0,0.06568]
[1745967012001,0.10600401,94341.0,94333.0,0.06568]
[1745967012205,0.88010401,94341.0,94333.0,0.06568]
[1745967012509,0.88010401,94341.0,94332.0,0.3608]
[1745967012510,0.10600401,94340.0,94332.0,0.3608]
[1745967012694,0.64200583,94340.0,94334.0,0.06568]
[1745967012899,0.49040401,94339.0,94334.0,0.06568]
[1745967013205,0.88040401,94339.0,94334.0,0.06568]
[1745967013408,0.10600401,94338.0,94334.0,0.06568]
[1745967013601,0.58200808,94338.0,94334.0,0.06568]
[1745967013806,0.49040401,94337.0,94334.0,0.06568]
[1745967014110,0.98040401,94337.0,94334.0,0.06568]
[1745967014306,0.10600401,94336.0,94334.0,0.06568]
[1745967014508,0.60200808,94336.0,94334.0,0.06568]
[1745967014703,0.49040401,94335.0,94334.0,0.06568]
[1745967014901,0.87040401,94335.0,94334.0,0.06568]
[1745967015102,0.99040401,94335.0,94334.0,0.06568]
[1745967015307,1.0964092,94335.0,94334.0,0.06568]
[1745967015699,1.0964092,94335.0,94334.0,0.07268]
[1745967016107,1.0964092,94335.0,94334.0,0.07868]
[1745967016604,1.0964092,94335.0,94334.0,0.07968]
[1745967024104,1.0964092,94335.0,94334.0,0.014]
[1745967025817,1.0964092,94335.0,94334.0,0.2105]
[1745967026012,1.0964092,94335.0,94334.0,0.2035]
[1745967026211,1.0964092,94335.0,94334.0,0.2105]
[1745967026803,0.60600519,94335.0,94334.0,0.5795]
[1745967029611,0.60600519,94335.0,94334.0,0.64514]
[1745967039621,0.60600519,94335.0,94334.0,1.00594]
[1745967048726,0.60600519,94335.0,94334.0,0.82564]
[1745967050725,0.60600519,94335.0,94334.0,0.46484]
[1745967054027,0.59100519,94335.0,94334.0,1.0375996]
[1745967054326,0.47100519,94335.0,94334.0,1.0375996]
[1745967054521,0.47100519,94335.0,94334.0,1.2226996]
[1745967058139,0.47100519,94335.0,94334.0,1.6340996]
[1745967064238,0.47100519,94335.0,94334.0,1.7540996]
[1745967065045,0.47100519,94335.0,94334.0,1.76908196]
[1745967065433,0.47100519,94335.0,94334.0,1.87508596]
[1745967068746,0.47100519,94335.0,94334.0,2.23588596]
[1745967069247,0.47100519,94335.0,94334.0,1.51428596]
[1745967069552,0.47100519,94335.0,94334.0,2.23588596]
[1745967069741,0.47100519,94335.0,94334.0,1.50728596]
[1745967069944,0.47100519,94335.0,94334.0,2.23088596]
[1745967071951,0.47100519,94335.0,94334.0,2.22388596]
[1745967072143,0.47100519,94335.0,94334.0,2.22188596]
[1745967079254,0.47100519,94335.0,94334.0,2.2069036]
[1745967079554,0.47100519,94335.0,94334.0,2.1008996]
[1745967079760,0.47100519,94335.0,94334.0,1.31848]
[1745967080145,0.59100519,94335.0,94334.0,1.19848]
[1745967080552,0.59100519,94335.0,94334.0,0.83768]
[1745967081355,0.60644206,94335.0,94334.0,0.83768]
[1745967082144,0.59100519,94335.0,94334.0,0.83768]
[1745967083144,0.59100519,94335.0,94334.0,1.02618]
[1745967083545,0.59100519,94335.0,94334.0,1.2381396]
[1745967083747,0.59100519,94335.0,94334.0,1.1726596]
[1745967083948,0.59100519,94335.0,94334.0,1.2381396]
[1745967084149,0.47100519,94335.0,94334.0,1.2381396]
[1745967084647,0.47100519,94335.0,94334.0,1.4338396]
[1745967085257,0.47100519,94335.0,94334.0,1.3683596]
[1745967085453,0.47100519,94335.0,94334.0,1.4338396]
[1745967086054,0.47100519,94335.0,94334.0,1.7946396]
[1745967090055,0.47100519,94335.0,94334.0,1.5989396]
[1745967090258,0.47100519,94335.0,94334.0,1.38698]
[1745967090657,0.47100519,94335.0,94334.0,0.83768]
[1745967091154,0.59100519,94335.0,94334.0,0.83768]
[1745967091458,0.59100519,94335.0,94334.0,1.0496396]
[1745967092253,0.47100519,94335.0,94334.0,1.0496396]
[1745967092445,0.47100519,94335.0,94334.0,1.1664596]
[1745967092652,0.47100519,94335.0,94334.0,1.2319396]
[1745967092858,0.47100519,94335.0,94334.0,1.1664596]
[1745967093047,0.47100519,94335.0,94334.0,1.01998]
[1745967093767,0.47100519,94335.0,94334.0,1.2319396]
[1745967096160,0.59100519,94335.0,94334.0,1.2319396]
[1745967097154,0.47100519,94335.0,94334.0,1.2319396]
[1745967098460,0.47100519,94335.0,94334.0,1.01998]
[1745967098852,0.47100519,94335.0,94334.0,1.2319396]
[1745967099357,0.59100519,94335.0,94334.0,1.2319396]
[1745967101255,0.47100519,94335.0,94334.0,1.2319396]
[1745967103159,0.41093116,94335.0,94334.0,1.3379436]
[1745967103361,0.16093116,94335.0,94334.0,1.3379436]
[1745967103757,0.16093116,94335.0,94334.0,2.7724636]
[1745967103957,0.16093116,94335.0,94334.0,2.8379436]
[1745967104154,0.16093116,94335.0,94334.0,2.9579436]
[1745967104466,0.16093116,94335.0,94334.0,1.4579436]
[1745967105058,0.16093116,94335.0,94334.0,1.6487436]
[1745967105258,0.16093116,94335.0,94334.0,1.5287436]
[1745967105866,0.0079343,94344.0,94343.0,0.2119394]
[1745967106063,0.2,94344.0,94343.0,0.6927394]
[1745967106254,0.2,94344.0,94343.0,0.7987354]
[1745967106658,0.2,94344.0,94343.0,1.1808354]
[1745967107968,0.2,94344.0,94343.0,1.2463154]
[1745967109759,0.20775602,94344.0,94343.0,1.2463154]
[1745967110957,0.20775602,94344.0,94343.0,1.6577154]
[1745967111162,0.20775602,94344.0,94343.0,1.5377154]
[1745967116474,0.20775602,94344.0,94343.0,1.4317194]
[1745967116676,0.31375166,94344.0,94343.0,1.02898]
[1745967116870,0.87795166,94344.0,94343.0,0.9635]
[1745967117058,0.87795166,94344.0,94343.0,1.0289]
[1745967117264,0.99795166,94344.0,94343.0,1.0289]
[1745967118571,0.99795166,94344.0,94343.0,0.8376]
[1745967119773,1.24795166,94344.0,94343.0,0.4768]
[1745967119984,1.35394766,94344.0,94343.0,0.4768]
[1745967121071,1.10394766,94344.0,94343.0,0.4768]
[1745967122270,0.99795166,94344.0,94343.0,0.4768]
[1745967122670,0.99795166,94344.0,94343.0,0.0654]
[1745967130577,0.99795166,94344.0,94343.0,0.4262]
[1745967131176,0.99795166,94344.0,94343.0,0.0654]
[1745967131362,1.10394766,94344.0,94343.0,0.0654]
[1745967132182,1.10394766,94344.0,94342.0,0.0654]
[1745967132376,0.99795166,94344.0,94342.0,0.0654]
[1745967138169,1.10394766,94344.0,94342.0,0.0654]
[1745967140084,0.99795166,94344.0,94342.0,0.0654]
[1745967143784,0.99795166,94344.0,94343.0,0.1898]
[1745967146989,0.43375166,94344.0,94343.0,0.4017394]
[1745967147178,0.31375166,94344.0,94343.0,0.7794394]
[1745967147374,0.31375166,94344.0,94343.0,0.5675]
[1745967147885,0.31375166,94344.0,94343.0,0.63282]
[1745967152177,0.31375166,94344.0,94343.0,0.99362]
[1745967152391,0.31375166,94344.0,94343.0,1.2055594]
[1745967153388,0.31375166,94344.0,94343.0,1.5663594]
[1745967155289,0.31375166,94344.0,94343.0,1.35442]
[1745967155587,0.31375166,94344.0,94343.0,1.5663594]
[1745967157790,0.31375166,94344.0,94343.0,1.9777594]
[1745967159389,0.31375166,94344.0,94343.0,1.6169594]
[1745967161286,0.31375166,94344.0,94343.0,1.2561594]
[1745967161489,0.31375166,94344.0,94343.0,1.6169594]
[1745967175107,0.31375166,94344.0,94343.0,1.8429554]
[1745967175505,0.31375166,94344.0,94343.0,1.7776354]
[1745967175693,0.31375166,94344.0,94343.0,1.8428754]
[1745967178207,0.31375166,94344.0,94343.0,1.85650916]
[1745967180308,0.31375166,94344.0,94343.0,1.73650916]
[1745967181106,0.14775602,94344.0,94343.0,2.10650916]
[1745967181312,0.0015,94380.0,94355.0,0.2119124]
[1745967181614,0.131,94356.0,94355.0,0.5727124]
[1745967181914,0.131,94356.0,94355.0,0.6786964]
[1745967182208,0.131,94356.0,94355.0,0.7986964]
[1745967182403,0.131,94356.0,94355.0,1.1803964]
[1745967182602,0.131,94356.0,94355.0,1.1843964]
[1745967183910,0.13914944,94356.0,94355.0,1.1843964]
[1745967184218,0.13914944,94356.0,94355.0,1.44654038]
[1745967185408,0.00826096,94356.0,94355.0,1.44654038]
[1745967185707,0.00826096,94356.0,94355.0,2.94654038]
[1745967187110,0.00826096,94356.0,94355.0,2.94254038]
[1745967187901,0.00826096,94356.0,94355.0,2.93854038]
[1745967191310,0.00826096,94356.0,94355.0,1.43854038]
[1745967191513,0.11424312,94356.0,94355.0,1.50374038]
[1745967191815,0.12424312,94356.0,94355.0,1.20655638]
[1745967192219,0.24424312,94356.0,94355.0,1.08655638]
[1745967192517,0.24424312,94356.0,94355.0,0.87464398]
[1745967192824,0.24424312,94356.0,94355.0,0.68814398]
[1745967193313,0.24424312,94356.0,94355.0,0.90005638]
[1745967194610,0.24424312,94356.0,94355.0,0.90009638]
[1745967195509,0.24424312,94356.0,94355.0,1.09039638]
[1745967195713,0.24424312,94356.0,94355.0,1.51034038]
[1745967195913,0.24424312,94356.0,94355.0,1.57558038]
[1745967196107,0.12424312,94356.0,94355.0,1.57558038]
[1745967200120,0.12424312,94356.0,94355.0,1.10879638]
[1745967200326,0.12424312,94356.0,94355.0,1.83039638]
[1745967201517,0.01826096,94356.0,94355.0,1.93638038]
[1745967202117,0.01826096,94356.0,94355.0,1.83039638]
[1745967202812,0.01826096,94356.0,94355.0,1.93638038]
[1745967203022,0.00826096,94356.0,94355.0,1.93638038]
[1745967205319,0.00826096,94356.0,94355.0,1.21478038]
[1745967205619,0.00826096,94356.0,94355.0,1.93638038]
[1745967212820,0.00826096,94356.0,94355.0,1.44429638]
[1745967213432,0.12424312,94356.0,94355.0,1.26081638]
[1745967214135,0.24424312,94356.0,94355.0,1.26081638]
[1745967215517,0.24424312,94356.0,94355.0,1.63321638]
[1745967216123,0.12424312,94356.0,94355.0,1.63321638]
[1745967216518,0.11424312,94356.0,94355.0,1.63321638]
[1745967217027,0.12424312,94356.0,94355.0,1.63321638]
[1745967219521,0.11424312,94356.0,94355.0,1.63321638]
[1745967219721,0.11424312,94356.0,94355.0,1.44701638]
[1745967228138,0.12424312,94356.0,94355.0,1.44701638]
[1745967228527,0.12424312,94356.0,94355.0,2.69029638]
[1745967229531,0.11424312,94356.0,94355.0,2.69029638]
[1745967232335,0.00826096,94356.0,94355.0,2.69029638]
[1745967234133,0.00826096,94356.0,94355.0,2.79628038]
[1745967234338,0.14000006,94356.0,94355.0,2.79628038]
[1745967234523,0.5697,94379.0,94378.0,0.2118608]
[1745967234724,0.9397,94379.0,94378.0,1.26068478]
[1745967235130,1.16568216,94379.0,94378.0,1.26068478]
[1745967235523,1.16568216,94379.0,94378.0,1.26368478]
[1745967235926,1.16568216,94379.0,94378.0,1.26668478]
[1745967237735,1.17367395,94379.0,94378.0,1.26668478]
[1745967238942,1.17367395,94379.0,94378.0,1.26368478]
[1745967239132,1.17367395,94379.0,94378.0,1.26068478]
[1745967246536,1.17367395,94379.0,94378.0,1.45948478]
[1745967246930,0.60397395,94379.0,94378.0,1.45948478]
[1745967247131,0.49799179,94379.0,94378.0,1.83178478]
[1745967247332,0.60394812,94379.0,94378.0,1.64818478]
[1745967247543,1.15954812,94379.0,94378.0,1.18254398]
[1745967247831,1.15954812,94379.0,94378.0,1.19560478]
[1745967248037,1.15954812,94379.0,94378.0,1.04882398]
[1745967248833,1.15954812,94379.0,94378.0,0.98374398]
[1745967249037,1.15954812,94379.0,94378.0,1.26068478]
[1745967249338,1.15954812,94379.0,94378.0,1.04882398]
[1745967250332,1.15954812,94379.0,94378.0,1.26068478]
[1745967254748,1.15954812,94379.0,94378.0,0.53908478]
[1745967254947,1.15954812,94379.0,94378.0,1.26068478]
[1745967255353,1.15954812,94379.0,94378.0,0.53908478]
[1745967255650,1.15954812,94379.0,94378.0,1.26068478]
[1745967259147,1.15954812,94379.0,94378.0,1.04882398]
[1745967259744,1.15954812,94379.0,94378.0,0.50852398]
[1745967260452,1.15954812,94379.0,94378.0,1.44198478]
[1745967260749,1.15954812,94379.0,94378.0,1.04882398]
[1745967260944,1.15954812,94379.0,94378.0,0.98374398]
[1745967261141,1.15954812,94379.0,94378.0,1.04882398]
[1745967263042,1.26550413,94379.0,94378.0,1.04882398]
[1745967265052,1.15954812,94379.0,94378.0,1.04882398]
[1745967271653,1.15954812,94379.0,94378.0,1.04874398]
[1745967274259,1.02954812,94379.0,94378.0,1.04874398]
[1745967274461,1.18954812,94379.0,94378.0,1.04874398]
[1745967276564,1.00504812,94379.0,94378.0,1.04874398]
[1745967277263,1.00504812,94379.0,94378.0,1.41974398]
[1745967278269,0.63394812,94379.0,94378.0,1.63160478]
[1745967282168,0.51394812,94379.0,94378.0,1.63160478]
[1745967283173,0.63394812,94379.0,94378.0,1.63160478]
[1745967284670,0.63394812,94379.0,94378.0,1.41974398]
[1745967284869,1.02044812,94379.0,94378.0,1.17004398]
[1745967285171,1.12640413,94379.0,94378.0,0.87424398]
[1745967287072,1.12640413,94379.0,94378.0,0.3608]
[1745967287257,1.12640413,94379.0,94378.0,0.065]
[1745967287458,1.37640413,94379.0,94378.0,0.065]
[1745967287662,1.12640413,94379.0,94378.0,0.065]
[1745967290771,1.02044812,94379.0,94378.0,0.065]
[1745967290977,1.12640413,94379.0,94378.0,0.065]
[1745967292975,1.12640413,94379.0,94375.0,0.065]
[1745967293275,0.10596001,94378.0,94375.0,0.065]
[1745967293475,0.52596001,94378.0,94375.0,0.065]
[1745967293671,0.48966001,94377.0,94375.0,0.065]
[1745967293971,1.01561859,94377.0,94376.0,0.1931]
[1745967294171,1.02965858,94377.0,94376.0,0.1931]
[1745967294373,1.13561859,94377.0,94376.0,0.1931]
[1745967299175,1.02965858,94377.0,94376.0,0.1931]
[1745967299361,1.13561859,94377.0,94376.0,0.1931]
[1745967302582,0.64595858,94377.0,94376.0,0.1931]
[1745967302878,0.64595858,94377.0,94376.0,0.5683]
[1745967303066,0.64595858,94377.0,94376.0,0.1931]
[1745967303474,1.01575858,94377.0,94376.0,0.1931]
[1745967303776,1.12171859,94377.0,94376.0,0.25806]
[1745967305368,1.01575858,94377.0,94376.0,0.25806]
[1745967311491,1.12171859,94377.0,94376.0,0.25806]
[1745967311678,1.48251859,94377.0,94371.0,0.06496]
[1745967311880,1.01575858,94377.0,94371.0,0.06496]
[1745967312089,1.01575858,94377.0,94372.0,0.1888]
[1745967312488,0.10596001,94376.0,94372.0,0.1888]
[1745967312690,0.51596001,94376.0,94372.0,0.1888]
[1745967312991,0.48986001,94375.0,94372.0,0.1888]
[1745967313197,0.99582139,94375.0,94372.0,0.1888]
[1745967313379,0.10596001,94374.0,94372.0,0.1888]
[1745967313574,0.48596001,94374.0,94372.0,0.1888]
[1745967313779,0.489864,94373.0,94372.0,0.1888]
[1745967314074,0.98986251,94373.0,94372.0,0.1888]
[1745967314279,1.09582651,94373.0,94372.0,0.1888]
[1745967316185,0.98986251,94373.0,94372.0,0.1888]
[1745967317784,1.45662651,94373.0,94372.0,0.1888]
[1745967318185,1.45662651,94373.0,94362.0,0.06496]
[1745967318386,0.16521656,94372.0,94363.0,0.1871]
[1745967318578,0.48260828,94372.0,94363.0,0.1871]
[1745967318886,0.490168,94371.0,94339.0,0.3608]
[1745967319184,0.16521656,94360.0,94348.0,0.06496]
[1745967319386,0.566,94359.0,94348.0,0.06496]
[1745967319582,0.956,94359.0,94349.0,0.1871]
[1745967319785,0.10596868,94358.0,94349.0,0.1871]
[1745967319979,0.3608,94352.0,94349.0,0.1871]
[1745967320178,0.1885,94351.0,94349.0,0.1871]
[1745967320378,0.7707,94351.0,94349.0,0.1871]
[1745967320575,0.1059844,94350.0,94349.0,0.1871]
[1745967320775,0.5459844,94350.0,94349.0,0.1871]
[1745967320975,1.0326724,94350.0,94349.0,0.1871]
[1745967321178,1.0466844,94350.0,94349.0,0.1871]
[1745967322976,1.05897378,94350.0,94349.0,0.1871]
[1745967323176,1.16496178,94350.0,94342.0,0.06496]
[1745967323379,0.105992,94349.0,94344.0,0.181]
[1745967323584,0.525992,94349.0,94344.0,0.181]
[1745967323877,0.668092,94348.0,94344.0,0.181]
[1745967324081,1.16408427,94348.0,94344.0,0.181]
[1745967324390,0.105992,94347.0,94344.0,0.181]
[1745967324588,0.495992,94347.0,94332.0,0.3702]
[1745967324789,0.3608,94333.0,94301.0,0.3608]
[1745967324981,0.08260828,94320.0,94319.0,0.181]
[1745967325180,0.52,94320.0,94319.0,0.181]
[1745967325480,0.62599339,94320.0,94319.0,0.181]
[1745967326383,0.62599339,94320.0,94301.0,0.3608]
[1745967326384,1.0943174,94320.0,94294.0,0.06492]
[1745967326584,0.08260828,94310.0,94308.0,0.1892]
[1745967326789,0.41,94310.0,94308.0,0.55]
[1745967326980,0.41810525,94310.0,94308.0,0.55]
[1745967327177,0.10603441,94309.0,94308.0,0.55]
[1745967327383,0.51603441,94309.0,94308.0,0.55]
[1745967327978,0.51603441,94309.0,94308.0,0.551]
[1745967328387,0.51603441,94309.0,94308.0,0.55]
[1745967328586,0.53057193,94309.0,94308.0,0.551]
[1745967328881,0.51803441,94309.0,94308.0,0.551]
[1745967330593,0.51803441,94309.0,94308.0,0.55]
[1745967330784,0.51603441,94309.0,94308.0,0.55]
[1745967330980,0.51803441,94309.0,94308.0,0.55]
[1745967331291,0.53144724,94309.0,94308.0,0.55]
[1745967331682,0.53044724,94309.0,94308.0,0.55]
[1745967333791,0.53144724,94309.0,94308.0,0.55]
[1745967334987,0.53244724,94309.0,94308.0,0.55]